fUST/lending_fUST_20250302
["ID","MTS","AMOUNT","RATE_DAILY","PERIOD"]
[355025356,1740873051070,-151.0,0.00025105,7]
[355025357,1740873051082,-158.079616,0.00025105,7]
[355025358,1740873051093,-500.0,0.000252,2]
[355025359,1740873051105,-246.99505675,0.000252,4]
[355025360,1740873051117,-309.31848964,0.00025204,2]
[355025361,1740873051129,-151.0,0.00025204,2]
[355025362,1740873051141,-247.390395,0.00025204,7]
[355025363,1740873051153,-332.451493,0.00025204,7]
[355025364,1740873051165,-332.451493,0.00025204,7]
[355025365,1740873051177,-151.0,0.00025204,7]
[355025366,1740873051188,-377.507149,0.00025204,7]
[355025367,1740873051200,-267.226842,0.00025204,7]
[355025368,1740873051217,-377.507149,0.00025204,7]
[355025369,1740873051228,-267.226842,0.00025204,7]
[355025370,1740873051240,-271.111896,0.00025204,7]
[355025371,1740873051252,-271.111896,0.00025204,7]
[355025372,1740873051264,-151.0,0.00025204,7]
[355025373,1740873051276,-151.0,0.00025204,7]
[355025374,1740873051288,-164.37568423,0.00025204,2]
[355025375,1740873051299,-733.47387,0.00025204,7]
[355025376,1740873051312,-151.0,0.00025204,7]
[355025377,1740873051324,-733.47387,0.00025204,7]
[355025378,1740873051335,-151.0,0.00025204,7]
[355025379,1740873051347,-151.0,0.00025204,7]
[355025380,1740873051359,-151.0,0.00025204,7]
[355025381,1740873051371,-105349.49989346,0.00025205,4]
[355025382,1740873051383,-320432.73089281,0.00025205,4]
[355025383,1740873051396,-500.0,0.00025205,2]
[355025384,1740873051409,-1441.23,0.00025205,2]
[355025385,1740873051421,-500.0,0.00025205,2]
[355025386,1740873051434,-231.667131,0.00025205,7]
[355025387,1740873051446,-231.667131,0.00025205,7]
[355025388,1740873051458,-500.0,0.00025205,2]
[355025389,1740873051470,-500.0,0.00025205,2]
[355025390,1740873051482,-500.0,0.00025205,2]
[355025391,1740873051494,-874.13,0.00025205,2]
[355025392,1740873051505,-151.0,0.00025205,7]
[355025393,1740873051517,-500.0,0.00025205,2]
[355025394,1740873051530,-500.0,0.00025205,2]
[355025395,1740873051542,-500.0,0.00025205,2]
[355025396,1740873051553,-500.0,0.00025205,2]
[355025397,1740873051566,-500.0,0.00025205,2]
[355025398,1740873051577,-151.0,0.00025205,7]
[355025399,1740873051589,-520.22,0.00025205,2]
[355025400,1740873051602,-509.66,0.00025205,2]
[355025401,1740873051613,-500.0,0.00025205,2]
[355025402,1740873051625,-301.506211,0.00025205,7]
[355025403,1740873051637,-500.0,0.00025205,2]
[355025404,1740873051649,-301.506211,0.00025205,7]
[355025405,1740873051661,-741.49,0.00025205,2]
[355025406,1740873051673,-500.0,0.00025205,2]
[355025407,1740873051684,-513.64183561,0.00025205,2]
[355025408,1740873051696,-1160.3,0.00025205,2]
[355025409,1740873051709,-500.0,0.00025205,2]
[355025410,1740873051721,-500.0,0.00025205,2]
[355025411,1740873051733,-500.0,0.00025205,2]
[355025412,1740873051745,-500.0,0.00025205,2]
[355025413,1740873051757,-500.0,0.00025205,2]
[355025414,1740873051769,-500.0,0.00025205,2]
[355025415,1740873051781,-684.94,0.00025205,2]
[355025416,1740873051793,-500.0,0.00025205,2]
[355025417,1740873051805,-500.0,0.00025205,2]
[355025418,1740873051817,-500.0,0.00025205,2]
[355025419,1740873051829,-500.0,0.00025205,2]
[355025420,1740873051840,-151.0,0.00025205,7]
[355025421,1740873051854,-500.0,0.00025205,2]
[355025422,1740873051866,-320.22280286,0.00025205,2]
[355025423,1740873051878,-500.0,0.00025205,2]
[355025424,1740873051890,-407.70227789,0.00025205,2]
[355025425,1740873051903,-151.0,0.00025205,7]
[355025426,1740873051915,-500.0,0.00025205,2]
[355025427,1740873051928,-500.0,0.00025205,2]
[355025428,1740873051941,-500.0,0.00025205,2]
[355025429,1740873051953,-500.0,0.00025205,2]
[355025430,1740873051964,-1334.82,0.00025205,2]
[355025431,1740873051977,-500.0,0.00025205,2]
[355025432,1740873051989,-500.0,0.00025205,2]
[355025433,1740873052001,-500.0,0.00025205,2]
[355025434,1740873052013,-887.17,0.00025205,2]
[355025435,1740873052025,-500.0,0.00025205,2]
[355025436,1740873052037,-500.0,0.00025205,2]
[355025437,1740873052049,-500.0,0.00025205,2]
[355025438,1740873052061,-500.0,0.00025205,2]
[355025439,1740873052073,-500.0,0.00025205,2]
[355025440,1740873052085,-500.0,0.00025205,2]
[355025441,1740873052097,-500.0,0.00025205,2]
[355025442,1740873052116,-500.0,0.00025205,2]
[355025443,1740873052128,-500.0,0.00025205,2]
[355025444,1740873052140,-513.09952248,0.00025205,2]
[355025445,1740873052152,-151.0,0.00025205,7]
[355025446,1740873052164,-151.0,0.00025205,7]
[355025447,1740873052177,-525.19719281,0.00025205,2]
[355025448,1740873052189,-500.0,0.00025205,2]
[355025449,1740873052202,-516.03,0.00025205,2]
[355025450,1740873052214,-500.0,0.00025205,2]
[355025451,1740873052225,-500.0,0.00025205,2]
[355025452,1740873052237,-627.37,0.00025205,2]
[355025453,1740873052249,-500.0,0.00025205,2]
[355025454,1740873052261,-500.0,0.00025205,2]
[355025455,1740873052273,-500.67738153,0.00025205,2]
[355025456,1740873052285,-500.0,0.00025205,2]
[355025457,1740873052297,-731.7,0.00025205,2]
[355025458,1740873052309,-500.0,0.00025205,2]
[355025459,1740873052321,-470.63071331,0.00025205,2]
[355025460,1740873052334,-500.0,0.00025205,2]
[355025461,1740873052345,-151.0,0.00025205,7]
[355025462,1740873052357,-500.0,0.00025205,2]
[355025463,1740873052369,-151.0,0.00025205,7]
[355025464,1740873052381,-217.91203669,0.00025205,2]
[355025465,1740873052393,-500.0,0.00025205,2]
[355025466,1740873052404,-500.0,0.00025205,2]
[355025467,1740873052417,-500.0,0.00025205,2]
[355025468,1740873052429,-993.52,0.00025205,2]
[355025469,1740873052441,-1723.603943,0.00025205,7]
[355025470,1740873052453,-1723.603943,0.00025205,7]
[355025471,1740873052465,-500.0,0.00025205,2]
[355025472,1740873052477,-813.19,0.00025205,2]
[355025473,1740873052489,-1723.603943,0.00025205,7]
[355025474,1740873052502,-1723.603943,0.00025205,7]
[355025475,1740873052515,-500.0,0.00025205,2]
[355025476,1740873052529,-541.54,0.00025205,2]
[355025477,1740873052542,-500.0,0.00025205,2]
[355025478,1740873052555,-500.0,0.00025205,2]
[355025479,1740873052566,-1291.05,0.00025205,2]
[355025480,1740873052575,-866.08,0.00025205,2]
[355025481,1740873052585,-500.0,0.00025205,2]
[355025482,1740873052595,-500.0,0.00025205,2]
[355025483,1740873052605,-500.0,0.00025205,2]
[355025484,1740873052615,-589.458831,0.00025205,7]
[355025485,1740873052625,-500.0,0.00025205,2]
[355025486,1740873052634,-589.458831,0.00025205,7]
[355025487,1740873052643,-918.84,0.00025205,2]
[355025488,1740873053003,-500.0,0.00025205,2]
[355025489,1740873053027,-589.458831,0.00025205,7]
[355025490,1740873053054,-589.458831,0.00025205,7]
[355025491,1740873053064,-500.0,0.00025205,2]
[355025492,1740873053074,-500.0,0.00025205,2]
[355025493,1740873053083,-573.54,0.00025205,2]
[355025494,1740873053092,-619.76,0.00025205,2]
[355025495,1740873053102,-500.0,0.00025205,2]
[355025496,1740873053111,-500.0,0.00025205,2]
[355025497,1740873053121,-500.0,0.00025205,2]
[355025498,1740873053130,-500.0,0.00025205,2]
[355025499,1740873053139,-500.0,0.00025205,2]
[355025500,1740873053149,-500.0,0.00025205,2]
[355025501,1740873053159,-500.0,0.00025205,2]
[355025502,1740873053169,-615.86,0.00025205,2]
[355025503,1740873053178,-151.0,0.00025205,7]
[355025504,1740873053188,-151.0,0.00025205,7]
[355025505,1740873053198,-500.0,0.00025205,2]
[355025506,1740873053208,-611.0,0.00025205,2]
[355025507,1740873053217,-500.0,0.00025205,2]
[355025508,1740873053227,-187.297976,0.00025205,7]
[355025509,1740873053237,-500.0,0.00025205,2]
[355025510,1740873053247,-782.43,0.00025205,2]
[355025511,1740873053256,-500.0,0.00025205,2]
[355025512,1740873053266,-500.0,0.00025205,2]
[355025513,1740873053276,-500.0,0.00025205,2]
[355025514,1740873053286,-521.39,0.00025205,2]
[355025515,1740873053295,-218.81770486,0.00025205,2]
[355025516,1740873053304,-500.0,0.00025205,2]
[355025517,1740873053313,-1170.42,0.00025205,2]
[355025518,1740873053322,-527.78,0.00025205,2]
[355025519,1740873053332,-1928.32,0.00025205,2]
[355025520,1740873053341,-500.0,0.00025205,2]
[355025521,1740873053351,-500.0,0.00025205,2]
[355025522,1740873053360,-500.0,0.00025205,2]
[355025523,1740873053369,-500.0,0.00025205,2]
[355025524,1740873053378,-490.79394895,0.00025205,2]
[355025525,1740873053387,-500.0,0.00025205,2]
[355025526,1740873053397,-500.0,0.00025205,2]
[355025527,1740873053406,-500.0,0.00025205,2]
[355025528,1740873053415,-500.0,0.00025205,2]
[355025529,1740873053424,-151.0,0.00025205,7]
[355025530,1740873053433,-151.0,0.00025205,7]
[355025531,1740873053442,-1722.4,0.00025205,2]
[355025532,1740873053452,-500.0,0.00025205,2]
[355025533,1740873053461,-500.0,0.00025205,2]
[355025534,1740873053470,-1681.79,0.00025205,2]
[355025535,1740873053480,-1605.78,0.00025205,2]
[355025536,1740873053489,-1652.18,0.00025205,2]
[355025537,1740873053499,-500.0,0.00025205,2]
[355025538,1740873053508,-500.0,0.00025205,2]
[355025539,1740873053517,-500.0,0.00025205,2]
[355025540,1740873053527,-500.0,0.00025205,2]
[355025541,1740873053537,-500.0,0.00025205,2]
[355025542,1740873053547,-524.24,0.00025205,2]
[355025543,1740873053556,-151.0,0.00025205,7]
[355025544,1740873053565,-160.871652,0.00025205,7]
[355025545,1740873053575,-500.0,0.00025205,2]
[355025546,1740873053584,-500.0,0.00025205,2]
[355025547,1740873053593,-500.0,0.00025205,2]
[355025548,1740873053603,-500.0,0.00025205,2]
[355025549,1740873053613,-608.79,0.00025205,2]
[355025550,1740873053622,-775.67,0.00025205,2]
[355025551,1740873053632,-151.0,0.00025205,7]
[355025552,1740873053641,-500.0,0.00025205,2]
[355025553,1740873053651,-500.0,0.00025205,2]
[355025554,1740873053660,-675.46,0.00025205,2]
[355025555,1740873053669,-151.0,0.00025205,7]
[355025556,1740873053678,-500.0,0.00025205,2]
[355025557,1740873053688,-151.0,0.00025205,7]
[355025558,1740873053698,-1863.66,0.00025205,2]
[355025559,1740873053707,-500.0,0.00025205,30]
[355025560,1740873053716,-151.0,0.00025205,7]
[355025561,1740873053726,-500.0,0.00025205,30]
[355025562,1740873053735,-151.0,0.00025205,7]
[355025563,1740873053745,-500.0,0.00025205,30]
[355025564,1740873053754,-500.0,0.00025205,30]
[355025565,1740873053764,-500.0,0.00025205,30]
[355025566,1740873053773,-500.0,0.00025205,30]
[355025567,1740873053783,-500.0,0.00025205,30]
[355025568,1740873053792,-500.0,0.00025205,30]
[355025569,1740873053802,-500.0,0.00025205,30]
[355025570,1740873053811,-500.0,0.00025205,30]
[355025571,1740873053820,-500.0,0.00025205,30]
[355025572,1740873053829,-546.636168,0.00025205,30]
[355025573,1740873053839,-1290.48,0.00025205,2]
[355025574,1740873053849,-500.0,0.00025205,2]
[355025575,1740873053861,-500.0,0.00025205,2]
[355025576,1740873053871,-500.0,0.00025205,2]
[355025577,1740873053880,-500.0,0.00025205,2]
[355025578,1740873053889,-647.29,0.00025205,2]
[355025579,1740873053899,-500.0,0.00025205,2]
[355025580,1740873053909,-500.0,0.00025205,2]
[355025581,1740873053919,-500.0,0.00025205,2]
[355025582,1740873053928,-1167.07,0.00025205,2]
[355025583,1740873053939,-500.0,0.00025205,2]
[355025584,1740873053949,-621.94,0.00025205,2]
[355025585,1740873053958,-500.0,0.00025205,2]
[355025586,1740873053968,-528.69,0.00025205,2]
[355025587,1740873053977,-500.0,0.00025205,2]
[355025588,1740873053986,-500.0,0.00025205,2]
[355025589,1740873053996,-250.654782,0.00025205,7]
[355025590,1740873054009,-250.654782,0.00025205,7]
[355025591,1740873054018,-388.200628,0.00025205,7]
[355025592,1740873054029,-388.200628,0.00025205,7]
[355025593,1740873054038,-250.654782,0.00025205,7]
[355025594,1740873054047,-250.654782,0.00025205,7]
[355025595,1740873054057,-1010.26,0.00025205,2]
[355025596,1740873054066,-388.200628,0.00025205,7]
[355025597,1740873054075,-388.200628,0.00025205,7]
[355025598,1740873054085,-507.19,0.00025205,2]
[355025599,1740873054094,-507.49,0.00025205,2]
[355025600,1740873054104,-1000.0,0.00025205,2]
[355025601,1740873054113,-500.0,0.00025205,2]
[355025602,1740873054123,-629.43,0.00025205,2]
[355025603,1740873054133,-151.0,0.00025205,7]
[355025604,1740873054142,-154.87669,0.00025205,7]
[355025605,1740873054151,-210.05031,0.00025205,7]
[355025606,1740873054160,-210.05031,0.00025205,7]
[355025607,1740873054170,-210.05031,0.00025205,7]
[355025608,1740873054180,-210.05031,0.00025205,7]
[355025609,1740873054189,-500.0,0.00025205,2]
[355025610,1740873054199,-1955.47,0.00025205,2]
[355025611,1740873054209,-500.0,0.00025205,2]
[355025612,1740873054218,-2456.7,0.00025205,2]
[355025613,1740873054227,-500.0,0.00025205,2]
[355025614,1740873054237,-500.0,0.00025205,2]
[355025615,1740873054246,-500.0,0.00025205,2]
[355025616,1740873054256,-500.0,0.00025205,2]
[355025617,1740873054266,-500.0,0.00025205,2]
[355025618,1740873054275,-1383.3,0.00025205,2]
[355025619,1740873054285,-500.0,0.00025205,2]
[355025620,1740873054295,-500.31,0.00025205,2]
[355025621,1740873054304,-1292.24,0.00025205,2]
[355025622,1740873054314,-1935.43,0.00025205,2]
[355025623,1740873054323,-284.623502,0.00025205,7]
[355025624,1740873054333,-500.0,0.00025205,2]
[355025625,1740873054342,-500.0,0.00025205,2]
[355025626,1740873054351,-284.623502,0.00025205,7]
[355025627,1740873054361,-500.0,0.00025205,2]
[355025628,1740873054370,-500.0,0.00025205,2]
[355025629,1740873054379,-2009.1,0.00025205,2]
[355025630,1740873054388,-500.0,0.00025205,2]
[355025631,1740873054397,-867.38,0.00025205,2]
[355025632,1740873054407,-500.0,0.00025205,2]
[355025633,1740873054416,-500.0,0.00025205,2]
[355025634,1740873054425,-1159.43,0.00025205,2]
[355025635,1740873054435,-560.17873018,0.00025205,2]
[355025636,1740873054444,-500.0,0.00025205,2]
[355025637,1740873054454,-1817.411493,0.00025205,7]
[355025638,1740873054463,-1817.411493,0.00025205,7]
[355025639,1740873054472,-500.0,0.00025205,2]
[355025640,1740873054482,-500.0,0.00025205,2]
[355025641,1740873054491,-500.0,0.00025205,2]
[355025642,1740873054500,-1739.58,0.00025205,2]
[355025643,1740873054509,-500.0,0.00025205,2]
[355025644,1740873054518,-500.0,0.00025205,2]
[355025645,1740873054528,-500.0,0.00025205,2]
[355025646,1740873054537,-151.0,0.00025205,7]
[355025647,1740873054546,-151.0,0.00025205,7]
[355025648,1740873054556,-151.0,0.00025205,7]
[355025649,1740873054565,-500.0,0.00025205,2]
[355025650,1740873054575,-680.28,0.00025205,2]
[355025651,1740873054584,-500.0,0.00025205,2]
[355025652,1740873054593,-1348.78,0.00025205,2]
[355025653,1740873054602,-500.0,0.00025205,2]
[355025654,1740873054612,-707.17,0.00025205,2]
[355025655,1740873054622,-500.0,0.00025205,2]
[355025656,1740873054631,-1148.9,0.00025205,2]
[355025657,1740873054640,-500.0,0.00025205,2]
[355025658,1740873054649,-500.0,0.00025205,2]
[355025659,1740873054658,-1040.41,0.00025205,2]
[355025660,1740873054667,-541.58,0.00025205,2]
[355025661,1740873054677,-500.0,0.00025205,2]
[355025662,1740873054687,-500.0,0.00025205,2]
[355025663,1740873054698,-500.0,0.00025205,2]
[355025664,1740873054708,-753.03,0.00025205,2]
[355025665,1740873054717,-500.0,0.00025205,2]
[355025666,1740873054726,-500.0,0.00025205,2]
[355025667,1740873054736,-812.61,0.00025205,2]
[355025668,1740873054745,-500.0,0.00025205,2]
[355025669,1740873054755,-582.51,0.00025205,2]
[355025670,1740873054763,-500.0,0.00025205,2]
[355025671,1740873054773,-2702.96,0.00025205,2]
[355025672,1740873054782,-1175.405536,0.00025205,7]
[355025673,1740873054792,-1175.405536,0.00025205,7]
[355025674,1740873054801,-1175.405536,0.00025205,7]
[355025675,1740873054810,-957.25,0.00025205,2]
[355025676,1740873054819,-1175.405536,0.00025205,7]
[355025677,1740873054829,-337.79262378,0.00025205,2]
[355025678,1740873054838,-1175.405536,0.00025205,7]
[355025679,1740873054848,-500.0,0.00025205,2]
[355025680,1740873054861,-1175.405536,0.00025205,7]
[355025681,1740873054870,-785.29,0.00025205,2]
[355025682,1740873054879,-151.0,0.00025205,7]
[355025683,1740873054889,-151.0,0.00025205,7]
[355025684,1740873054899,-151.0,0.00025205,7]
[355025685,1740873054909,-505.23536334,0.00025205,2]
[355025686,1740873054919,-500.0,0.00025205,2]
[355025687,1740873054928,-1117.88,0.00025205,2]
[355025688,1740873054940,-151.0,0.00025205,7]
[355025689,1740873054950,-500.0,0.00025205,2]
[355025690,1740873054960,-500.0,0.00025205,2]
[355025691,1740873054969,-151.0,0.00025205,7]
[355025692,1740873054979,-151.0,0.00025205,7]
[355025693,1740873054988,-500.0,0.00025205,2]
[355025694,1740873054998,-603.97,0.00025205,2]
[355025695,1740873055007,-1976.160097,0.00025205,5]
[355025696,1740873055016,-1976.160097,0.00025205,5]
[355025697,1740873055026,-1976.160097,0.00025205,5]
[355025698,1740873055035,-1976.160097,0.00025205,5]
[355025699,1740873055044,-1976.160097,0.00025205,5]
[355025700,1740873055054,-1976.160097,0.00025205,5]
[355025701,1740873055063,-1059.64,0.00025205,2]
[355025702,1740873055072,-978.3,0.00025205,2]
[355025703,1740873055082,-500.0,0.00025205,2]
[355025704,1740873055092,-500.0,0.00025205,2]
[355025705,1740873055102,-1862.94,0.00025205,2]
[355025706,1740873055111,-500.0,0.00025205,2]
[355025707,1740873055121,-1018.61,0.00025205,2]
[355025708,1740873055130,-537.61,0.00025205,2]
[355025709,1740873055139,-500.0,0.00025205,2]
[355025710,1740873055149,-1545.79,0.00025205,2]
[355025711,1740873055158,-1931.62,0.00025205,2]
[355025712,1740873055168,-551.91,0.00025205,2]
[355025713,1740873055179,-151.0,0.00025205,7]
[355025714,1740873055188,-151.0,0.00025205,7]
[355025715,1740873055198,-500.0,0.00025205,2]
[355025716,1740873055208,-500.0,0.00025205,2]
[355025717,1740873055219,-151.0,0.00025205,7]
[355025718,1740873055231,-500.0,0.00025205,2]
[355025719,1740873055242,-500.0,0.00025205,2]
[355025720,1740873055252,-904.54,0.00025205,2]
[355025721,1740873055261,-500.0,0.00025205,2]
[355025722,1740873055271,-1129.6,0.00025205,2]
[355025723,1740873055281,-151.0,0.00025205,7]
[355025724,1740873055291,-700.04,0.00025205,2]
[355025725,1740873055301,-151.0,0.00025205,7]
[355025726,1740873055310,-151.0,0.00025205,7]
[355025727,1740873055320,-192942.74,0.00025205,2]
[355025728,1740873055329,-500.0,0.00025205,2]
[355025729,1740873055339,-786.76,0.00025205,2]
[355025730,1740873055349,-500.0,0.00025205,2]
[355025731,1740873055358,-615.44,0.00025205,2]
[355025732,1740873055368,-3860.7,0.00025205,2]
[355025733,1740873055377,-2034.07,0.00025205,2]
[355025734,1740873055387,-1620.26,0.00025205,2]
[355025735,1740873055396,-830.96,0.00025205,2]
[355025736,1740873055406,-151.0,0.00025205,7]
[355025737,1740873055415,-151.0,0.00025205,7]
[355025738,1740873055425,-151.0,0.00025205,7]
[355025739,1740873055434,-151.0,0.00025205,7]
[355025740,1740873055444,-151.0,0.00025205,7]
[355025741,1740873055453,-151.0,0.00025205,7]
[355025742,1740873055463,-500.0,0.00025205,2]
[355025743,1740873055472,-819.44,0.00025205,2]
[355025744,1740873055482,-151.0,0.00025205,7]
[355025745,1740873055491,-271.109143,0.00025205,7]
[355025746,1740873055500,-500.0,0.00025205,2]
[355025747,1740873055510,-653.28,0.00025205,2]
[355025748,1740873055520,-151.0,0.00025205,7]
[355025749,1740873055530,-4020.17,0.00025205,2]
[355025750,1740873055539,-151.0,0.00025205,7]
[355025751,1740873055549,-151.0,0.00025205,7]
[355025752,1740873055558,-500.0,0.00025205,2]
[355025753,1740873055568,-521.4,0.00025205,2]
[355025754,1740873055577,-953.86,0.00025205,2]
[355025755,1740873055587,-500.0,0.00025205,2]
[355025756,1740873055597,-550.93,0.00025205,2]
[355025757,1740873055606,-628.91,0.00025205,2]
[355025758,1740873055616,-2219.83,0.00025205,2]
[355025759,1740873055626,-500.0,0.00025205,2]
[355025760,1740873055636,-339.290011,0.00025205,7]
[355025761,1740873055645,-339.290011,0.00025205,7]
[355025762,1740873055655,-707.73,0.00025205,2]
[355025763,1740873055664,-514.16259709,0.00025205,2]
[355025764,1740873055674,-339.290011,0.00025205,7]
[355025765,1740873055684,-339.290011,0.00025205,7]
[355025766,1740873055694,-500.0,0.00025205,2]
[355025767,1740873055704,-500.0,0.00025205,2]
[355025768,1740873055714,-515.24679205,0.00025205,2]
[355025769,1740873055723,-5224.95,0.00025205,2]
[355025770,1740873055733,-3541.59,0.00025205,2]
[355025771,1740873055742,-1312.91,0.00025205,2]
[355025772,1740873055751,-617.41,0.00025205,2]
[355025773,1740873055761,-1167.23,0.00025205,2]
[355025774,1740873055771,-332.451493,0.00025205,7]
[355025775,1740873055781,-500.0,0.00025205,2]
[355025776,1740873055790,-500.0,0.00025205,2]
[355025777,1740873055800,-332.451493,0.00025205,7]
[355025778,1740873055809,-500.0,0.00025205,2]
[355025779,1740873055818,-500.0,0.00025205,2]
[355025780,1740873055828,-2196.45,0.00025205,2]
[355025781,1740873055837,-1371.07,0.00025205,2]
[355025782,1740873055846,-515.65,0.00025205,2]
[355025783,1740873055858,-500.0,0.00025205,2]
[355025784,1740873055868,-332.451493,0.00025205,7]
[355025785,1740873055877,-332.451493,0.00025205,7]
[355025786,1740873055886,-500.0,0.00025205,2]
[355025787,1740873055895,-500.0,0.00025205,2]
[355025788,1740873055906,-1064.54,0.00025205,2]
[355025789,1740873055915,-456.42,0.00025205,2]
[355025790,1740873055924,-2106.67,0.00025205,2]
[355025791,1740873055934,-500.0,0.00025205,2]
[355025792,1740873055943,-500.0,0.00025205,2]
[355025793,1740873055953,-766.4,0.00025205,2]
[355025794,1740873055962,-500.0,0.00025205,2]
[355025795,1740873055971,-1882.72,0.00025205,2]
[355025796,1740873055981,-500.0,0.00025205,2]
[355025797,1740873055990,-534.75,0.00025205,2]
[355025798,1740873056000,-500.0,0.00025205,2]
[355025799,1740873056009,-500.0,0.00025205,2]
[355025800,1740873056018,-500.0,0.00025205,2]
[355025801,1740873056029,-500.95402503,0.00025205,2]
[355025802,1740873056038,-500.0,0.00025205,2]
[355025803,1740873056047,-500.0,0.00025205,2]
[355025804,1740873056058,-500.0,0.00025205,2]
[355025805,1740873056067,-500.0,0.00025205,2]
[355025806,1740873056076,-928.33,0.00025205,2]
[355025807,1740873056086,-1085.82,0.00025205,2]
[355025808,1740873056095,-15107.9,0.00025205,2]
[355025809,1740873056105,-500.2,0.00025205,2]
[355025810,1740873056114,-500.0,0.00025205,2]
[355025811,1740873056124,-500.0,0.00025205,2]
[355025812,1740873056364,-1544.35,0.00025205,2]
[355025813,1740873056374,-5283.99,0.00025205,2]
[355025814,1740873056384,-500.0,0.00025205,2]
[355025815,1740873056394,-1059.54,0.00025205,2]
[355025816,1740873056404,-500.0,0.00025205,2]
[355025817,1740873056413,-500.0,0.00025205,2]
[355025818,1740873056423,-875.75,0.00025205,2]
[355025819,1740873056432,-1148.11,0.00025205,2]
[355025820,1740873056442,-1989.18,0.00025205,2]
[355025821,1740873056451,-7386.96,0.00025205,2]
[355025822,1740873056461,-500.0,0.00025205,2]
[355025823,1740873056471,-500.0,0.00025205,2]
[355025824,1740873056480,-542.2,0.00025205,2]
[355025825,1740873056490,-795.63,0.00025205,2]
[355025826,1740873056499,-500.0,0.00025205,2]
[355025827,1740873056509,-500.0,0.00025205,2]
[355025828,1740873056518,-500.0,0.00025205,2]
[355025829,1740873056528,-571.2,0.00025205,2]
[355025830,1740873056537,-11182.75,0.00025205,2]
[355025831,1740873056546,-500.0,0.00025205,2]
[355025832,1740873056556,-500.0,0.00025205,2]
[355025833,1740873056565,-782.09,0.00025205,2]
[355025834,1740873056574,-500.0,0.00025205,2]
[355025835,1740873056584,-4744.64,0.00025205,2]
[355025836,1740873056593,-151.0,0.00025205,7]
[355025837,1740873056603,-151.0,0.00025205,7]
[355025838,1740873056613,-500.0,0.00025205,2]
[355025839,1740873056623,-1509.52,0.00025205,2]
[355025840,1740873056632,-377.507149,0.00025205,7]
[355025841,1740873056641,-377.507149,0.00025205,7]
[355025842,1740873056650,-500.0,0.00025205,2]
[355025843,1740873056660,-267.226842,0.00025205,7]
[355025844,1740873056670,-267.226842,0.00025205,7]
[355025845,1740873056679,-557.7,0.00025205,2]
[355025846,1740873056689,-500.0,0.00025205,2]
[355025847,1740873056699,-500.0,0.00025205,2]
[355025848,1740873056709,-377.507149,0.00025205,7]
[355025849,1740873056719,-377.507149,0.00025205,7]
[355025850,1740873056728,-267.226842,0.00025205,7]
[355025851,1740873056738,-500.0,0.00025205,2]
[355025852,1740873056747,-267.226842,0.00025205,7]
[355025853,1740873056757,-500.0,0.00025205,2]
[355025854,1740873056766,-2034.14,0.00025205,2]
[355025855,1740873056777,-6624.41,0.00025205,2]